[Event "Titled Tuesday Blitz February 21 Late 2023"]
[White "Uzcategui Rodriguez, Alejandro"]
[Black "Horvath, Dominik"]
[WhiteFideId "3903400"]
[BlackFideId "1642561"]
[WhiteElo "2255"]
[BlackElo "2523"]
[Result "0-1"]
[Round "02"]
[TimeControl "180+2"]
[Date "2023.02.21"]
[WhiteClock "0:00:52"]
[BlackClock "0:01:42"]

1. e4 {[%clk 0:03:00]}  e5 {[%clk 0:03:00]} 2. Nf3 {[%clk 0:03:00]}  Nc6 {[%clk 0:02:59]} 3. d4 {[%clk 0:03:01]}  exd4 {[%clk 0:03:00]} 4. Bc4 {[%clk 0:03:00]}  Nf6 {[%clk 0:02:59]} 5. O-O {[%clk 0:03:00]}  Nxe4 {[%clk 0:02:56]} 6. Re1 {[%clk 0:03:00]}  d5 {[%clk 0:02:56]} 7. Bxd5 {[%clk 0:03:01]}  Qxd5 {[%clk 0:02:57]} 8. Nc3 {[%clk 0:03:01]}  Qd7 {[%clk 0:02:58]} 9. Nxe4 {[%clk 0:02:59]}  Be7 {[%clk 0:02:58]} 10. Bg5 {[%clk 0:02:58]}  O-O {[%clk 0:02:58]} 11. Bxe7 {[%clk 0:02:58]}  Qxe7 {[%clk 0:02:56]} 12. Nxd4 {[%clk 0:02:58]}  Bd7 {[%clk 0:02:56]} 13. Nb3 {[%clk 0:02:49]}  Qd8 {[%clk 0:02:37]} 14. Qh5 {[%clk 0:02:43]}  b6 {[%clk 0:02:29]} 15. Rad1 {[%clk 0:02:42]}  Qc8 {[%clk 0:02:29]} 16. h3 {[%clk 0:02:19]}  Bf5 {[%clk 0:02:23]} 17. Qg5 {[%clk 0:02:08]}  Bg6 {[%clk 0:02:22]} 18. c3 {[%clk 0:02:05]}  Re8 {[%clk 0:02:17]} 19. Ng3 {[%clk 0:02:02]}  Rxe1+ {[%clk 0:02:11]} 20. Rxe1 {[%clk 0:02:03]}  Qd7 {[%clk 0:02:11]} 21. Qe3 {[%clk 0:01:55]}  Kf8 {[%clk 0:02:08]} 22. Nd2 {[%clk 0:01:43]}  Re8 {[%clk 0:02:07]} 23. Qxe8+ {[%clk 0:01:42]}  Qxe8 {[%clk 0:02:08]} 24. Rxe8+ {[%clk 0:01:42]}  Kxe8 {[%clk 0:02:09]} 25. Kf1 {[%clk 0:01:42]}  Ne5 {[%clk 0:02:08]} 26. Ke2 {[%clk 0:01:41]}  Nd3 {[%clk 0:02:08]} 27. b3 {[%clk 0:01:27]}  Nc1+ {[%clk 0:02:06]} 28. Ke3 {[%clk 0:01:26]}  Nxa2 {[%clk 0:02:06]} 29. c4 {[%clk 0:01:26]}  Nc1 {[%clk 0:02:05]} 30. Kd4 {[%clk 0:01:23]}  Kd7 {[%clk 0:02:04]} 31. f4 {[%clk 0:01:22]}  Bc2 {[%clk 0:01:51]} 32. Kc3 {[%clk 0:01:18]}  Bd1 {[%clk 0:01:51]} 33. Nde4 {[%clk 0:01:07]}  Ne2+ {[%clk 0:01:50]} 34. Nxe2 {[%clk 0:01:07]}  Bxe2 {[%clk 0:01:50]} 35. Ng5 {[%clk 0:01:01]}  f6 {[%clk 0:01:46]} 36. Nxh7 {[%clk 0:00:59]}  Ke7 {[%clk 0:01:46]} 37. g4 {[%clk 0:00:54]}  Bf1 {[%clk 0:01:42]} 38. h4 {[%clk 0:00:54]}  Bh3 {[%clk 0:01:42]} 39. g5 {[%clk 0:00:54]}  Bf5 {[%clk 0:01:42]} 40. gxf6+ {[%clk 0:00:49]}  gxf6 {[%clk 0:01:42]} 41. Ng5 {[%clk 0:00:42]}  fxg5 {[%clk 0:01:41]} 42. fxg5 {[%clk 0:00:43]}  Bg6 {[%clk 0:01:41]} 43. Kd4 {[%clk 0:00:44]}  Kd6 {[%clk 0:01:40]} 44. b4 {[%clk 0:00:44]}  c5+ {[%clk 0:01:40]} 45. bxc5+ {[%clk 0:00:45]}  bxc5+ {[%clk 0:01:41]} 46. Kc3 {[%clk 0:00:46]}  Ke5 {[%clk 0:01:39]} 47. Kb3 {[%clk 0:00:46]}  Kd4 {[%clk 0:01:39]} 48. Ka4 {[%clk 0:00:45]}  Kxc4 {[%clk 0:01:40]} 49. Ka5 {[%clk 0:00:46]}  Kb3 {[%clk 0:01:40]} 50. Ka6 {[%clk 0:00:47]}  c4 {[%clk 0:01:40]} 51. Kxa7 {[%clk 0:00:48]}  c3 {[%clk 0:01:41]} 52. Kb6 {[%clk 0:00:49]}  c2 {[%clk 0:01:41]} 53. Kc6 {[%clk 0:00:50]}  c1=Q+ {[%clk 0:01:41]} 54. Kd6 {[%clk 0:00:51]}  Qc2 {[%clk 0:01:42]} 55. Ke6 {[%clk 0:00:52]}  Qf5+ {[%clk 0:01:42]} 56. Ke7 {[%clk 0:00:52]}  Kc4 {[%clk 0:01:43]} 57. Kd8 {[%clk 0:00:52]}  Qf7 {[%clk 0:01:42]} 0-1


[Site "https://www.chess.com"]

[Event "Titled Tuesday Blitz February 21 Late 2023"]
[White "Msellek, Ilyass"]
[Black "Nunez V, Gustavo Eduardo"]
[WhiteFideId "675938"]
[BlackFideId "4403690"]
[WhiteElo "2420"]
[BlackElo "2212"]
[Result "1-0"]
[Round "02"]
[TimeControl "180+2"]
[Date "2023.02.21"]
[WhiteClock "0:00:19"]
[BlackClock "0:00:12"]

1. d4 {[%clk 0:03:00]}  Nf6 {[%clk 0:02:59]} 2. Nf3 {[%clk 0:03:00]}  d5 {[%clk 0:02:59]} 3. Bg5 {[%clk 0:03:00]}  e6 {[%clk 0:02:58]} 4. e3 {[%clk 0:02:58]}  Be7 {[%clk 0:02:59]} 5. Nbd2 {[%clk 0:02:57]}  O-O {[%clk 0:02:59]} 6. Bd3 {[%clk 0:02:57]}  h6 {[%clk 0:02:58]} 7. Bh4 {[%clk 0:02:57]}  Nbd7 {[%clk 0:02:57]} 8. O-O {[%clk 0:02:56]}  c5 {[%clk 0:02:56]} 9. c3 {[%clk 0:02:55]}  b6 {[%clk 0:02:57]} 10. h3 {[%clk 0:02:54]}  a5 {[%clk 0:02:57]} 11. Qe2 {[%clk 0:02:50]}  Bb7 {[%clk 0:02:53]} 12. Ne5 {[%clk 0:02:38]}  Nxe5 {[%clk 0:02:45]} 13. dxe5 {[%clk 0:02:38]}  Nd7 {[%clk 0:02:46]} 14. Bxe7 {[%clk 0:02:37]}  Qxe7 {[%clk 0:02:47]} 15. f4 {[%clk 0:02:37]}  f5 {[%clk 0:02:47]} 16. exf6 {[%clk 0:02:35]}  Rxf6 {[%clk 0:02:43]} 17. e4 {[%clk 0:02:29]}  Raf8 {[%clk 0:02:38]} 18. exd5 {[%clk 0:02:20]}  Bxd5 {[%clk 0:02:39]} 19. Qe3 {[%clk 0:02:21]}  Qf7 {[%clk 0:02:34]} 20. g3 {[%clk 0:01:55]}  Qh5 {[%clk 0:02:33]} 21. Kh2 {[%clk 0:01:55]}  e5 {[%clk 0:02:20]} 22. f5 {[%clk 0:01:49]}  e4 {[%clk 0:02:03]} 23. g4 {[%clk 0:01:38]}  Qh4 {[%clk 0:01:48]} 24. Bxe4 {[%clk 0:01:36]}  Bxe4 {[%clk 0:01:36]} 25. Nxe4 {[%clk 0:01:37]}  R6f7 {[%clk 0:01:37]} 26. Qg3 {[%clk 0:01:33]}  Qd8 {[%clk 0:01:34]} 27. Rad1 {[%clk 0:01:32]}  Re8 {[%clk 0:01:33]} 28. Nd6 {[%clk 0:01:11]}  Re2+ {[%clk 0:01:33]} 29. Rf2 {[%clk 0:01:11]}  Rxf2+ {[%clk 0:01:31]} 30. Qxf2 {[%clk 0:01:12]}  Qc7 {[%clk 0:01:29]} 31. Qg3 {[%clk 0:01:06]}  Re7 {[%clk 0:01:29]} 32. Rd2 {[%clk 0:01:07]}  Nf6 {[%clk 0:01:27]} 33. a4 {[%clk 0:00:49]}  Kh7 {[%clk 0:00:55]} 34. h4 {[%clk 0:00:45]}  h5 {[%clk 0:00:43]} 35. gxh5 {[%clk 0:00:44]}  Rd7 {[%clk 0:00:36]} 36. h6 {[%clk 0:00:40]}  g5 {[%clk 0:00:29]} 37. hxg5 {[%clk 0:00:37]}  Nh5 {[%clk 0:00:24]} 38. g6+ {[%clk 0:00:37]}  Kxh6 {[%clk 0:00:23]} 39. Qe3+ {[%clk 0:00:37]}  Kg7 {[%clk 0:00:22]} 40. Qe5+ {[%clk 0:00:38]}  Kg8 {[%clk 0:00:19]} 41. Qe6+ {[%clk 0:00:25]}  Kh8 {[%clk 0:00:16]} 42. Kg1 {[%clk 0:00:19]}  Ng7 {[%clk 0:00:12]} 43. Rh2+ {[%clk 0:00:17]}  Nh5 {[%clk 0:00:11]} 44. Rxh5+ {[%clk 0:00:18]}  Kg7 {[%clk 0:00:11]} 45. Rh7+ {[%clk 0:00:18]}  Kf8 {[%clk 0:00:12]} 46. Qe8# {[%clk 0:00:19]} 1-0


[Site "https://www.chess.com"]

[Event "Titled Tuesday Blitz February 21 Late 2023"]
[White "Battlecruiser_Operational"]
[Black "Oro, Faustino"]
[BlackFideId "20000197"]
[WhiteElo "2290"]
[BlackElo "2269"]
[Result "0-1"]
[Round "02"]
[TimeControl "180+2"]
[Date "2023.02.21"]
[WhiteClock "0:00:02"]
[BlackClock "0:00:12"]

1. d4 {[%clk 0:02:59]}  Nf6 {[%clk 0:03:00]} 2. Nf3 {[%clk 0:02:59]}  e6 {[%clk 0:03:00]} 3. Bg5 {[%clk 0:02:58]}  c5 {[%clk 0:02:57]} 4. c3 {[%clk 0:02:55]}  Be7 {[%clk 0:02:54]} 5. Nbd2 {[%clk 0:02:54]}  O-O {[%clk 0:02:53]} 6. e4 {[%clk 0:02:53]}  d6 {[%clk 0:02:49]} 7. Bd3 {[%clk 0:02:50]}  Nc6 {[%clk 0:02:48]} 8. Rc1 {[%clk 0:02:48]}  b6 {[%clk 0:02:46]} 9. O-O {[%clk 0:02:46]}  Bb7 {[%clk 0:02:46]} 10. Re1 {[%clk 0:02:47]}  h6 {[%clk 0:02:44]} 11. Bh4 {[%clk 0:02:39]}  Rc8 {[%clk 0:02:43]} 12. Qe2 {[%clk 0:02:28]}  cxd4 {[%clk 0:02:22]} 13. cxd4 {[%clk 0:02:26]}  Nb4 {[%clk 0:02:20]} 14. Bb1 {[%clk 0:02:00]}  Ba6 {[%clk 0:02:17]} 15. Qe3 {[%clk 0:01:56]}  Qd7 {[%clk 0:01:46]} 16. a3 {[%clk 0:01:27]}  Nc6 {[%clk 0:01:42]} 17. b4 {[%clk 0:01:22]}  Bb7 {[%clk 0:01:31]} 18. h3 {[%clk 0:01:14]}  Rfd8 {[%clk 0:01:12]} 19. g4 {[%clk 0:00:57]}  Nh7 {[%clk 0:01:07]} 20. Bg3 {[%clk 0:00:54]}  Bf8 {[%clk 0:00:58]} 21. g5 {[%clk 0:00:32]}  hxg5 {[%clk 0:00:55]} 22. Nxg5 {[%clk 0:00:33]}  g6 {[%clk 0:00:52]} 23. Nxh7 {[%clk 0:00:26]}  Kxh7 {[%clk 0:00:52]} 24. h4 {[%clk 0:00:26]}  e5 {[%clk 0:00:50]} 25. Nf3 {[%clk 0:00:24]}  Bh6 {[%clk 0:00:42]} 26. Ng5+ {[%clk 0:00:23]}  Bxg5 {[%clk 0:00:37]} 27. hxg5 {[%clk 0:00:23]}  Nxd4 {[%clk 0:00:37]} 28. Kg2 {[%clk 0:00:23]}  Qg4 {[%clk 0:00:31]} 29. Rg1 {[%clk 0:00:20]}  Qe2 {[%clk 0:00:26]} 30. Rh1+ {[%clk 0:00:19]}  Kg8 {[%clk 0:00:26]} 31. Qxe2 {[%clk 0:00:13]}  Nxe2 {[%clk 0:00:27]} 32. Rce1 {[%clk 0:00:10]}  Nd4 {[%clk 0:00:22]} 33. Rc1 {[%clk 0:00:09]}  Ne6 {[%clk 0:00:18]} 34. Bh4 {[%clk 0:00:05]}  d5 {[%clk 0:00:17]} 35. f3 {[%clk 0:00:04]}  dxe4 {[%clk 0:00:17]} 36. fxe4 {[%clk 0:00:02]}  Nf4+ {[%clk 0:00:17]} 37. Kf3 {[%clk 0:00:02]}  Ba6 {[%clk 0:00:14]} 38. Ba2 {[%clk 0:00:02]}  Rd3+ {[%clk 0:00:12]} 0-1


[Site "https://www.chess.com"]

[Event "Titled Tuesday Blitz February 21 Late 2023"]
[White "Mendonca, Mateus Nakajo"]
[Black "Van Dael, Siem"]
[WhiteFideId "2110954"]
[BlackFideId "1049771"]
[WhiteElo "2410"]
[BlackElo "2319"]
[Result "1-0"]
[Round "02"]
[TimeControl "180+2"]
[Date "2023.02.21"]
[WhiteClock "0:00:22"]
[BlackClock "0:00:37"]

1. d4 {[%clk 0:02:43]}  g6 {[%clk 0:02:59]} 2. Nf3 {[%clk 0:02:43]}  Bg7 {[%clk 0:03:00]} 3. g3 {[%clk 0:02:43]}  b6 {[%clk 0:03:00]} 4. Bg2 {[%clk 0:02:43]}  Bb7 {[%clk 0:03:01]} 5. O-O {[%clk 0:02:44]}  Nf6 {[%clk 0:03:02]} 6. c4 {[%clk 0:02:44]}  O-O {[%clk 0:03:03]} 7. d5 {[%clk 0:02:44]}  Ne4 {[%clk 0:03:03]} 8. Qc2 {[%clk 0:02:44]}  f5 {[%clk 0:03:02]} 9. Nbd2 {[%clk 0:02:43]}  Nd6 {[%clk 0:02:50]} 10. e4 {[%clk 0:02:41]}  fxe4 {[%clk 0:02:36]} 11. Nxe4 {[%clk 0:02:42]}  Nxe4 {[%clk 0:02:37]} 12. Qxe4 {[%clk 0:02:41]}  Na6 {[%clk 0:02:38]} 13. Re1 {[%clk 0:02:36]}  e6 {[%clk 0:02:38]} 14. Bg5 {[%clk 0:02:31]}  Bf6 {[%clk 0:02:38]} 15. Qh4 {[%clk 0:02:23]}  exd5 {[%clk 0:02:36]} 16. Bxf6 {[%clk 0:02:20]}  Qxf6 {[%clk 0:02:35]} 17. Ng5 {[%clk 0:02:15]}  Qxf2+ {[%clk 0:02:19]} 18. Kh1 {[%clk 0:02:14]}  h5 {[%clk 0:02:19]} 19. cxd5 {[%clk 0:01:52]}  Qxb2 {[%clk 0:02:13]} 20. Qc4 {[%clk 0:01:15]}  b5 {[%clk 0:01:45]} 21. Qd3 {[%clk 0:01:12]}  Qf6 {[%clk 0:01:45]} 22. Ne4 {[%clk 0:01:09]}  Qf5 {[%clk 0:01:33]} 23. Qxb5 {[%clk 0:01:03]}  Rab8 {[%clk 0:01:28]} 24. Rf1 {[%clk 0:00:51]}  Qe5 {[%clk 0:01:28]} 25. Rxf8+ {[%clk 0:00:50]}  Rxf8 {[%clk 0:01:21]} 26. Re1 {[%clk 0:00:45]}  Kh8 {[%clk 0:01:17]} 27. Qxb7 {[%clk 0:00:42]}  Nc5 {[%clk 0:01:17]} 28. Qb1 {[%clk 0:00:39]}  Re8 {[%clk 0:01:14]} 29. Qc1 {[%clk 0:00:31]}  Nd3 {[%clk 0:00:51]} 30. Qh6+ {[%clk 0:00:28]}  Kg8 {[%clk 0:00:51]} 31. Qxg6+ {[%clk 0:00:28]}  Kh8 {[%clk 0:00:52]} 32. Rf1 {[%clk 0:00:25]}  h4 {[%clk 0:00:36]} 33. Nf6 {[%clk 0:00:23]}  Nf2+ {[%clk 0:00:37]} 34. Rxf2 {[%clk 0:00:22]} 1-0


[Site "https://www.chess.com"]

[Event "Titled Tuesday Blitz February 21 Late 2023"]
[White "Aydincelebi, Kagan"]
[Black "Sawyer, Bradley"]
[WhiteFideId "6361102"]
[BlackFideId "2023784"]
[WhiteElo "2280"]
[BlackElo "2172"]
[Result "1-0"]
[Round "02"]
[TimeControl "180+2"]
[Date "2023.02.21"]
[WhiteClock "0:01:56"]
[BlackClock "0:01:13"]

1. e4 {[%clk 0:03:00]}  e5 {[%clk 0:02:59]} 2. Nf3 {[%clk 0:03:01]}  Nc6 {[%clk 0:02:58]} 3. Bb5 {[%clk 0:03:01]}  a6 {[%clk 0:02:58]} 4. Ba4 {[%clk 0:03:02]}  Nf6 {[%clk 0:02:58]} 5. O-O {[%clk 0:03:03]}  Be7 {[%clk 0:02:58]} 6. d3 {[%clk 0:03:03]}  b5 {[%clk 0:02:48]} 7. Bb3 {[%clk 0:03:03]}  d6 {[%clk 0:02:45]} 8. a4 {[%clk 0:03:04]}  Bd7 {[%clk 0:02:40]} 9. Nc3 {[%clk 0:02:53]}  Na5 {[%clk 0:02:36]} 10. Ba2 {[%clk 0:02:53]}  bxa4 {[%clk 0:02:30]} 11. Ng5 {[%clk 0:02:45]}  O-O {[%clk 0:02:28]} 12. f4 {[%clk 0:02:46]}  exf4 {[%clk 0:02:11]} 13. Bxf4 {[%clk 0:02:45]}  Qe8 {[%clk 0:01:47]} 14. Qd2 {[%clk 0:02:25]}  Nh5 {[%clk 0:01:36]} 15. Be3 {[%clk 0:01:57]}  Bxg5 {[%clk 0:01:26]} 16. Bxg5 {[%clk 0:01:58]}  Be6 {[%clk 0:01:26]} 17. Nd5 {[%clk 0:01:56]}  Bxd5 {[%clk 0:01:23]} 18. Bxd5 {[%clk 0:01:57]}  c6 {[%clk 0:01:21]} 19. Ba2 {[%clk 0:01:56]}  h6 {[%clk 0:01:13]} 1-0


[Site "https://www.chess.com"]

[Event "Titled Tuesday Blitz February 21 Late 2023"]
[White "Alex_Sahakyan2006"]
[Black "Sarkar, Justin"]
[BlackFideId "2010011"]
[WhiteElo "2654"]
[BlackElo "2309"]
[Result "1-0"]
[Round "02"]
[TimeControl "180+2"]
[Date "2023.02.21"]
[WhiteClock "0:00:08"]
[BlackClock "0:00:09"]

1. Nf3 {[%clk 0:03:00]}  d5 {[%clk 0:02:52]} 2. g3 {[%clk 0:02:58]}  g6 {[%clk 0:02:42]} 3. c4 {[%clk 0:02:53]}  dxc4 {[%clk 0:02:38]} 4. Na3 {[%clk 0:02:49]}  Bg7 {[%clk 0:02:26]} 5. Nxc4 {[%clk 0:02:49]}  Nc6 {[%clk 0:02:25]} 6. Bg2 {[%clk 0:02:48]}  e5 {[%clk 0:02:23]} 7. d3 {[%clk 0:02:48]}  Nge7 {[%clk 0:02:20]} 8. O-O {[%clk 0:02:48]}  O-O {[%clk 0:02:18]} 9. Rb1 {[%clk 0:02:48]}  a5 {[%clk 0:02:15]} 10. Be3 {[%clk 0:02:42]}  h6 {[%clk 0:02:06]} 11. Qd2 {[%clk 0:02:24]}  Nf5 {[%clk 0:01:58]} 12. Bc5 {[%clk 0:02:23]}  Re8 {[%clk 0:01:56]} 13. Rbc1 {[%clk 0:02:22]}  Be6 {[%clk 0:01:47]} 14. Rfd1 {[%clk 0:02:14]}  Qd7 {[%clk 0:01:40]} 15. h4 {[%clk 0:01:26]}  b6 {[%clk 0:01:35]} 16. Bxb6 {[%clk 0:01:13]}  Bxc4 {[%clk 0:01:27]} 17. dxc4 {[%clk 0:00:59]}  Qe7 {[%clk 0:00:54]} 18. Be3 {[%clk 0:00:38]}  Red8 {[%clk 0:00:51]} 19. Qc2 {[%clk 0:00:33]}  e4 {[%clk 0:00:38]} 20. Nh2 {[%clk 0:00:25]}  Nxe3 {[%clk 0:00:36]} 21. fxe3 {[%clk 0:00:26]}  f5 {[%clk 0:00:33]} 22. Rd5 {[%clk 0:00:23]}  Nb4 {[%clk 0:00:29]} 23. Rxd8+ {[%clk 0:00:19]}  Rxd8 {[%clk 0:00:29]} 24. Qb3 {[%clk 0:00:17]}  Rd2 {[%clk 0:00:27]} 25. a3 {[%clk 0:00:17]}  Nc6 {[%clk 0:00:23]} 26. Rc2 {[%clk 0:00:13]}  Rd1+ {[%clk 0:00:17]} 27. Nf1 {[%clk 0:00:14]}  Qc5 {[%clk 0:00:16]} 28. Qb5 {[%clk 0:00:12]}  Qxe3+ {[%clk 0:00:14]} 29. Kh2 {[%clk 0:00:12]}  Qf2 {[%clk 0:00:11]} 30. e3 {[%clk 0:00:09]}  Ne5 {[%clk 0:00:10]} 31. Rxf2 {[%clk 0:00:08]}  Ng4+ {[%clk 0:00:10]} 32. Kg1 {[%clk 0:00:08]}  Nxf2 {[%clk 0:00:09]} 33. Kxf2 {[%clk 0:00:08]} 1-0


[Site "https://www.chess.com"]

[Event "Titled Tuesday Blitz February 21 Late 2023"]
[White "Domingo Nunez, Ruben"]
[Black "Rego, Pedro Filipe"]
[WhiteFideId "22245570"]
[BlackFideId "1904310"]
[WhiteElo "2416"]
[BlackElo "2312"]
[Result "1/2-1/2"]
[Round "02"]
[TimeControl "180+2"]
[Date "2023.02.21"]
[WhiteClock "0:00:10"]
[BlackClock "0:00:03"]

1. b3 {[%clk 0:03:00]}  e5 {[%clk 0:02:59]} 2. Bb2 {[%clk 0:02:50]}  d6 {[%clk 0:03:00]} 3. f3 {[%clk 0:02:51]}  c5 {[%clk 0:02:53]} 4. c4 {[%clk 0:02:52]}  g6 {[%clk 0:02:48]} 5. Nc3 {[%clk 0:02:52]}  Bg7 {[%clk 0:02:48]} 6. Qc2 {[%clk 0:02:50]}  Nc6 {[%clk 0:02:47]} 7. e3 {[%clk 0:02:51]}  Nge7 {[%clk 0:02:43]} 8. a3 {[%clk 0:02:50]}  Be6 {[%clk 0:02:41]} 9. Nge2 {[%clk 0:02:45]}  Rc8 {[%clk 0:02:37]} 10. g3 {[%clk 0:02:16]}  d5 {[%clk 0:02:31]} 11. cxd5 {[%clk 0:02:16]}  Nxd5 {[%clk 0:02:30]} 12. Bg2 {[%clk 0:02:17]}  Nd4 {[%clk 0:02:20]} 13. Qd1 {[%clk 0:02:14]}  Nxc3 {[%clk 0:02:11]} 14. Bxc3 {[%clk 0:02:01]}  Bxb3 {[%clk 0:02:11]} 15. Qb1 {[%clk 0:02:01]}  Nc2+ {[%clk 0:02:07]} 16. Kf2 {[%clk 0:02:00]}  Nxa1 {[%clk 0:02:07]} 17. Qxa1 {[%clk 0:01:58]}  O-O {[%clk 0:02:03]} 18. h4 {[%clk 0:01:57]}  h5 {[%clk 0:01:42]} 19. Rb1 {[%clk 0:01:56]}  c4 {[%clk 0:01:38]} 20. Nc1 {[%clk 0:01:56]}  Qd7 {[%clk 0:01:25]} 21. Nxb3 {[%clk 0:01:47]}  cxb3 {[%clk 0:01:26]} 22. Rxb3 {[%clk 0:01:48]}  e4 {[%clk 0:01:16]} 23. Bd4 {[%clk 0:01:07]}  Bxd4 {[%clk 0:01:10]} 24. exd4 {[%clk 0:01:08]}  exf3 {[%clk 0:00:52]} 25. Bxf3 {[%clk 0:01:09]}  b6 {[%clk 0:00:51]} 26. d5 {[%clk 0:01:09]}  Qf5 {[%clk 0:00:48]} 27. Kg2 {[%clk 0:01:09]}  Rfe8 {[%clk 0:00:45]} 28. Qd4 {[%clk 0:01:06]}  Rc1 {[%clk 0:00:44]} 29. Rc3 {[%clk 0:00:58]}  Rxc3 {[%clk 0:00:40]} 30. Qxc3 {[%clk 0:00:58]}  Rd8 {[%clk 0:00:38]} 31. Qc6 {[%clk 0:00:56]}  Qe5 {[%clk 0:00:36]} 32. Qb7 {[%clk 0:00:51]}  Qd4 {[%clk 0:00:34]} 33. Qxa7 {[%clk 0:00:49]}  Qxd2+ {[%clk 0:00:33]} 34. Kh3 {[%clk 0:00:49]}  Qc3 {[%clk 0:00:22]} 35. Qxb6 {[%clk 0:00:45]}  Re8 {[%clk 0:00:21]} 36. Qc6 {[%clk 0:00:34]}  Re3 {[%clk 0:00:17]} 37. Qxc3 {[%clk 0:00:18]}  Rxc3 {[%clk 0:00:18]} 38. Be4 {[%clk 0:00:19]}  Rxa3 {[%clk 0:00:17]} 39. d6 {[%clk 0:00:17]}  Kf8 {[%clk 0:00:17]} 40. Bc6 {[%clk 0:00:13]}  Rd3 {[%clk 0:00:15]} 41. d7 {[%clk 0:00:13]}  Ke7 {[%clk 0:00:15]} 42. Kg2 {[%clk 0:00:13]}  Kd8 {[%clk 0:00:14]} 43. Kf2 {[%clk 0:00:13]}  Kc7 {[%clk 0:00:15]} 44. Bb5 {[%clk 0:00:14]}  Rc3 {[%clk 0:00:12]} 45. Kg2 {[%clk 0:00:13]}  f6 {[%clk 0:00:12]} 46. Kf2 {[%clk 0:00:13]}  g5 {[%clk 0:00:12]} 47. hxg5 {[%clk 0:00:13]}  fxg5 {[%clk 0:00:13]} 48. Kg2 {[%clk 0:00:14]}  Rc5 {[%clk 0:00:11]} 49. Ba4 {[%clk 0:00:12]}  Rc4 {[%clk 0:00:10]} 50. Bb3 {[%clk 0:00:11]}  Rb4 {[%clk 0:00:09]} 51. Bf7 {[%clk 0:00:09]}  h4 {[%clk 0:00:08]} 52. gxh4 {[%clk 0:00:10]}  gxh4 {[%clk 0:00:08]} 53. Be6 {[%clk 0:00:10]}  Re4 {[%clk 0:00:08]} 54. Bf5 {[%clk 0:00:10]}  Rb4 {[%clk 0:00:06]} 55. Kh3 {[%clk 0:00:10]}  Rd4 {[%clk 0:00:06]} 56. Bg4 {[%clk 0:00:10]}  Kd8 {[%clk 0:00:04]} 57. Kxh4 {[%clk 0:00:10]}  Rxd7 {[%clk 0:00:03]} 58. Bxd7 {[%clk 0:00:10]} 1/2-1/2


[Site "https://www.chess.com"]

[Event "Titled Tuesday Blitz February 21 Late 2023"]
[White "Delgado Rosas, Fatima Alexandra"]
[Black "Ozates, Tuna"]
[WhiteFideId "6603963"]
[BlackFideId "6354521"]
[WhiteElo "1500"]
[BlackElo "2251"]
[Result "0-1"]
[Round "02"]
[TimeControl "180+2"]
[Date "2023.02.21"]
[WhiteClock "0:00:37"]
[BlackClock "0:01:01"]

1. d4 {[%clk 0:02:56]}  f5 {[%clk 0:02:59]} 2. Nf3 {[%clk 0:02:55]}  Nf6 {[%clk 0:02:59]} 3. c4 {[%clk 0:02:54]}  e6 {[%clk 0:02:57]} 4. Nc3 {[%clk 0:02:55]}  Be7 {[%clk 0:02:58]} 5. g3 {[%clk 0:02:54]}  O-O {[%clk 0:02:58]} 6. Bg2 {[%clk 0:02:55]}  d6 {[%clk 0:02:59]} 7. O-O {[%clk 0:02:55]}  Qe8 {[%clk 0:02:59]} 8. Qc2 {[%clk 0:02:55]}  Qh5 {[%clk 0:02:57]} 9. e4 {[%clk 0:02:54]}  fxe4 {[%clk 0:02:57]} 10. Nxe4 {[%clk 0:02:55]}  Nc6 {[%clk 0:02:55]} 11. a3 {[%clk 0:02:52]}  e5 {[%clk 0:02:30]} 12. d5 {[%clk 0:02:47]}  Bf5 {[%clk 0:02:20]} 13. Nxf6+ {[%clk 0:02:35]}  Rxf6 {[%clk 0:02:21]} 14. Qe2 {[%clk 0:02:26]}  Na5 {[%clk 0:02:09]} 15. Bg5 {[%clk 0:02:18]}  Rf7 {[%clk 0:02:04]} 16. Bxe7 {[%clk 0:02:18]}  Rxe7 {[%clk 0:02:03]} 17. Rac1 {[%clk 0:02:05]}  Rf8 {[%clk 0:01:54]} 18. b4 {[%clk 0:02:00]}  Bg4 {[%clk 0:01:48]} 19. Rc3 {[%clk 0:01:56]}  e4 {[%clk 0:01:42]} 20. bxa5 {[%clk 0:01:37]}  Bxf3 {[%clk 0:01:26]} 21. Bxf3 {[%clk 0:01:33]}  Rxf3 {[%clk 0:01:24]} 22. Rxf3 {[%clk 0:01:30]}  Qxf3 {[%clk 0:01:25]} 23. Qe3 {[%clk 0:01:25]}  b6 {[%clk 0:01:16]} 24. Re1 {[%clk 0:01:19]}  Kf7 {[%clk 0:01:00]} 25. axb6 {[%clk 0:00:54]}  axb6 {[%clk 0:01:00]} 26. Qxf3+ {[%clk 0:00:50]}  exf3 {[%clk 0:01:01]} 27. Rxe7+ {[%clk 0:00:51]}  Kxe7 {[%clk 0:01:01]} 28. Kf1 {[%clk 0:00:38]}  Kf6 {[%clk 0:01:01]} 29. c5 {[%clk 0:00:37]}  dxc5 {[%clk 0:01:01]} 0-1


[Site "https://www.chess.com"]